Cogmind - Beta 13 @@@ ROGUE MODE // 2024.06.15 @ 01:17:48 Player: karotgaemin Result: Destroyed by D-53 Grenadier with Mini Grenade Launcher Performance ------------- Evolutions (3) 1500 Regions Visited (4) 800 Robots Destroyed (76) 380 Value Destroyed (2026) 2026 Prototype IDs (5) 100 Alien Tech Used (0) 0 Bonus (6) 6 TOTAL SCORE: 4812 Bonus ------- High Alert Combat Kills 6 Cogmind --------- Core Integrity 0/700 Matter 300/300 Energy 77/100 System Corruption 5% Temperature Warm (195) Movement Core (50) Location -7/Factory Parts ------- > --- POWER (1) -------- (None) > --- PROPULSION (4) --- (None) > --- UTILITY (6) ------ Improved Heat Sink Core Analyzer Hacking Suite Hacking Suite > --- WEAPON (2) ------- (None) > --- INVENTORY (5) ---- Light Nuclear Core Micro Nuclear Core Improved Cooling System Heavy Laser Gauss Rifle Peak State ------------ > --- POWER ------------ Light Deuterium Engine > --- PROPULSION ------- Armored Wheel Armored Wheel Armored Huge Wheel > --- UTILITY ---------- Large Storage Unit Visual Processing Unit Sensor Array Improved Signal Interpreter Medium Armor Plating Hacking Suite > --- WEAPON ----------- Gatling Laser Gatling Laser > --- INVENTORY -------- Light Ion Engine Light Nuclear Core Armored Wheel Improved Heat Sink Core Analyzer Advanced ECM Suite Heavy EM Pulse Gun Heavy EM Pulse Gun Gatling Laser Gatling Laser Gatling Laser Shotgun Improved Assault Rifle Assault Cannon [Rating: 39] Favorites ----------- Power Light Nuclear Core Engine Light Ion Engine Power Core Light Nuclear Core Propulsion Armored Wheel Treads Light Treads Wheel Armored Wheel Utility Large Storage Unit Device Improved Heat Sink Storage Large Storage Unit Processor Visual Processing Unit Hackware Hacking Suite Protection Light Armor Plating Weapon Gatling Laser Energy Gun Gatling Laser Ballistic Gun Improved Assault Rifle Ballistic Cannon Assault Cannon Launcher Advanced EMP Blaster Build | -11 -10 -9 -8 -7 ------- Run | Yrd Mat Mat Mat Fac Slots Evolved 6 | . . 2 2 2 Power . | . . . . . Propulsion 2 | . . . 2 . Utility 4 | . . 2 . 2 Weapon . | . . . . . Parts Attached 94 | 7 10 20 15 42 Power 14 | 1 1 1 4 7 Engine 8 | 1 . 1 3 3 Core 6 | . 1 . 1 4 Reactor . | . . . . . Propulsion 26 | 3 . 5 3 15 Treads 3 | 1 . 2 . . Leg . | . . . . . Wheel 23 | 2 . 3 3 15 Hover . | . . . . . Flight . | . . . . . Utility 20 | 1 3 6 4 6 Device 7 | . . 3 2 2 Storage 3 | 1 2 . . . Processor 4 | . 1 . 2 1 Hackware 2 | . . . . 2 Protection 4 | . . 3 . 1 Artifact . | . . . . . Weapon 34 | 2 6 8 4 14 Energy Gun 25 | 2 6 6 2 9 Energy Cannon . | . . . . . Ballistic Gun 6 | . . 2 2 2 Ballistic Cannon 2 | . . . . 2 Launcher 1 | . . . . 1 Special Weapon . | . . . . . Impact Weapon . | . . . . . Slashing Weapon . | . . . . . Piercing Weapon . | . . . . . Special Melee Weapon . | . . . . . Unidentified Prototypes 5 | . . 2 1 2 Parts Lost 31 | . . 4 2 25 Power 6 | . . . 1 5 Propulsion 10 | . . 1 . 9 Utility 7 | . . 1 1 5 Weapon 8 | . . 2 . 6 Highest Loss Streak 11 | . . 4 2 11 To Critical Strikes . | . . . . . Average Slot Usage (%) 95 | . 92 98 98 94 Engine 5 | . 6 3 5 5 Core 3 | . 7 7 2 1 Wheel 26 | . 28 18 36 26 Device 5 | . . 11 9 3 Storage 9 | . 14 11 9 7 Processor 15 | . 6 11 14 20 Hackware 4 | . . . . 10 Protection 3 | . . 10 2 1 Energy Gun 15 | . 28 21 10 10 Ballistic Gun 2 | . . . 7 1 Naked Turns . | . . . . . Heaviest Build 41 | 11 31 35 34 41 Greatest Support 52 | 32 32 40 48 52 Greatest Overweight (x) 6 | . . 1 . 6 Average Overweight (x) . | . . . . . Largest Inventory Capacity 15 | 8 15 15 15 15 Average Capacity 14 | 6 10 15 15 15 Most Carried 15 | 5 9 11 12 15 Average Carried 9 | 2 5 9 9 10 Final Capacity 15 | 8 15 15 15 5 Final Carried 12 | 2 7 11 12 5 Class Distribution -------------------- 48% | Scavenger-Mutant 35% | Mutant 10% | Scavenger-Skirmisher 5% | Skirmisher Dominant Class ---------------- Mutant | -10/Materials Mutant | -9/Materials Scavenger-Mutant | -8/Materials Scavenger-Mutant | -7/Factory Resources | -11 -10 -9 -8 -7 ----------- Run | Yrd Mat Mat Mat Fac Matter Collected 1448 | 223 97 211 324 593 Remotely . | . . . . . Salvage Created 2618 | . 168 530 538 1382 Parts 158 | . 13 46 32 67 Haulers Intercepted 2 | . . 1 . 1 Recyclers Shooed . | . . . . . Parts Field Recycled . | . . . . . Retrieved Matter . | . . . . . Parts Self-Destructed . | . . . . . Prevented . | . . . . . Kills | -11 -10 -9 -8 -7 ------- Run | Yrd Mat Mat Mat Fac Combat Hostiles Destroyed 64 | . 3 17 11 33 Guns 60 | . 3 17 11 29 AOE 1 | . . . . 1 Classes Destroyed 13 | . 2 4 2 5 Worker 8 | . . 1 . 7 Builder 1 | . . . . 1 Hauler 2 | . . 1 . 1 Recycler 3 | . . . . 3 Operator 2 | . . . 2 . Watcher 6 | . 2 1 2 1 Swarmer 26 | . . 13 3 10 Grunt 13 | . 3 1 4 5 Protector 1 | . . . . 1 Sentry 12 | . . 3 3 6 Hunter 1 | . . . 1 . Programmer 1 | . . . . 1 Assembled 10 | . . . . 10 Best Kill Streak 10 | . 2 9 3 10 Combat Bots Only 10 | . 2 8 3 10 Max Kills in Single Turn 2 | . 1 2 1 2 Gunslinging 1 | . . 1 . 1 Exploded 1 | . . . . 1 Melee . | . . . . . Uniques/NPCs Destroyed . | . . . . . Combat | -11 -10 -9 -8 -7 -------- Run | Yrd Mat Mat Mat Fac Hostile Shots Fired 497 | . 12 97 53 335 Missed 153 | . 5 24 15 109 Damage Taken 4385 | . 100 688 584 3013 Core 1032 | . 43 124 149 716 Absorbed by Shields . | . . . . . Regen/Repaired (Parts) 15 | . . . 15 . Core Remaining (%) 80 | 100 82 69 72 . Volleys Fired 155 | . 10 20 33 92 Largest 2 | . 2 2 2 2 Hottest 160 | . 115 101 160 160 Shots Fired 298 | . 20 39 66 173 Gun 271 | . 20 39 66 146 Cannon 22 | . . . . 22 Launcher 5 | . . . . 5 Special . | . . . . . Kinetic 85 | . . 7 44 34 Thermal 193 | . 20 19 22 132 Explosive . | . . . . . Electromagnetic 20 | . . 13 . 7 Robot Hit Streak 26 | . 15 21 26 16 Robot Miss Streak 7 | . 1 3 6 7 Penetration Max . | . . . . . Secondary Targets 9 | . . 4 2 3 Max Gunslinging Chain 1 | . . 1 1 1 Shots Hit Robots 230 | . 16 26 56 132 Core Hits 195 | . 10 23 32 130 Critical Kills . | . . . . . Critical Parts Destroyed . | . . . . . Critical Strikes 1 | . . 1 . . Burn 1 | . . 1 . . Melee Attacks . | . . . . . Impact . | . . . . . Slashing . | . . . . . Piercing . | . . . . . Sneak Attacks . | . . . . . Combat Hostiles . | . . . . . Follow-up Attacks . | . . . . . Damage Inflicted 4910 | . 206 431 911 3362 Guns 4308 | . 206 431 911 2760 Cannons 169 | . . . . 169 Explosions 433 | . . . . 433 Melee . | . . . . . Ramming . | . . . . . Kinetic 1002 | . . 95 577 330 Thermal 3368 | . 206 152 334 2676 Explosive . | . . . . . Electromagnetic 540 | . . 184 . 356 Impact . | . . . . . Slashing . | . . . . . Piercing . | . . . . . Highest Corruption 5 | . 2 . . 5 Average Corruption 2 | . 2 . . 4 Corruption Purged . | . . . . . Corruption Blocked . | . . . . . Effects 2 | . 2 . . . Message Errors 1 | . 1 . . . Heat Flow Errors 1 | . 1 . . . Overload Shots . | . . . . . Overflow Damage 20 | . . . . 20 Projectiles 7 | . . . . 7 Explosions 13 | . . . . 13 Melee . | . . . . . Knockbacks 3 | . . . . 3 Impact . | . . . . . Kinetic 3 | . . . . 3 Secondary . | . . . . . Self-Inflicted Damage 216 | . . . . 216 Shots 8 | . . . . 8 Rammed . | . . . . . Targets Rammed . | . . . . . Kicked . | . . . . . Crushed . | . . . . . Highest Temperature 483 | . 189 16 168 483 Average Temperature 89 | . 73 5 47 109 Received Heat Transfer 1061 | . 60 90 225 686 Effects 6 | . . . . 6 Shutdowns 1 | . . . . 1 Interference 1 | . . . . 1 Damage (major) 4 | . . . . 4 Siege Activations . | . . . . . Robots Corrupted . | . . . . . Combat Hostiles . | . . . . . Parts Fried . | . . . . . Impact Corruptions . | . . . . . Robots Melted 2 | . . . . 2 Combat Hostiles 2 | . . . . 2 Parts Melted 17 | . . . 3 14 Heat Transferred 7254 | . 544 407 775 5528 Parts Sabotaged . | . . . . . Parts Stolen . | . . . . . Parts Stripped . | . . . . . Power Chain Reactions 4 | . . . . 4 Alert | -11 -10 -9 -8 -7 ------- Run | Yrd Mat Mat Mat Fac Peak Influence 442 | . 139 420 442 383 Initial 133 | . . . 105 133 Average 211 | . 64 224 270 235 Maximum Alert Level 2 | . . 2 2 1 Low Security (%) 38 | 100 100 24 22 30 Level 1 58 | . . 73 65 69 Level 2 2 | . . 1 11 . Level 3 . | . . . . . Level 4 . | . . . . . Level 5 . | . . . . . High Security . | . . . . . Max Security . | . . . . . Squads Dispatched 9 | . . . 4 5 Investigation 1 | . . . 1 . Extermination 1 | . . . . 1 Reinforcement . | . . . . . Assault 1 | . . . . 1 Garrison 6 | . . . 3 3 Intercept . | . . . . . Searches Triggered . | . . . . . Construction Impeded . | . . . . . Haulers Reinforced . | . . . . . Active Scanning Responses . | . . . . . Cargo Convoy Interrupts . | . . . . . Stealth | -11 -10 -9 -8 -7 --------- Run | Yrd Mat Mat Mat Fac Distress Signals 2 | . . . 1 1 Communications Jammed . | . . . . . Distress Signals . | . . . . . Times Spotted 98 | . 8 18 15 57 Peak Tracking Total 8 | . 3 8 4 6 Tactical Retreats 1 | . 1 . . . Traps | -11 -10 -9 -8 -7 ------- Run | Yrd Mat Mat Mat Fac Traps Triggered 7 | . 1 1 1 4 Indirectly . | . . . . . Trap Hack Attempts . | . . . . . Triggered . | . . . . . Disarmed . | . . . . . Reprogrammed . | . . . . . Reused . | . . . . . Traps Extracted . | . . . . . Installed . | . . . . . Triggered . | . . . . . Machines | -11 -10 -9 -8 -7 ---------- Run | Yrd Mat Mat Mat Fac Machines Disabled 7 | . . 1 . 6 Max in Single Turn 1 | . . 1 . 1 Garrison Access 1 | . . . . 1 Machines Repaired . | . . . . . Machines Dismantled . | . . . . . Machines Sabotaged . | . . . . . Overloaded Fab Kills . | . . . . . Hacking | -11 -10 -9 -8 -7 --------- Run | Yrd Mat Mat Mat Fac Machines Accessed 3 | . . . 1 2 Terminals 2 | . . . . 2 Fabricators . | . . . . . Repair Stations 1 | . . . 1 . Recycling Units . | . . . . . Scanalyzers . | . . . . . Garrison Access . | . . . . . Total Hacks 10 | . . . 5 5 Successful 6 | . . . 4 2 Failed 4 | . . . 1 3 Catastrophic . | . . . . . Database Lockouts . | . . . . . Manual . | . . . . . Terminals 5 | . . . . 5 Fabricators . | . . . . . Repair Stations 5 | . . . 5 . Recycling Units . | . . . . . Scanalyzers . | . . . . . Garrison Access . | . . . . . Terminal Hacks 2 | . . . . 2 Dispatch Records 1 | . . . . 1 Hauler Manifests 1 | . . . . 1 Fabricator Hacks . | . . . . . Repair Station Hacks 4 | . . . 4 . Scan Component 3 | . . . 3 . Repair 1 | . . . 1 . Recycling Unit Hacks . | . . . . . Scanalyzer . | . . . . . Garrison Access Hacks . | . . . . . Unauthorized Hacks . | . . . . . Terminals . | . . . . . Fabricators . | . . . . . Repair Stations . | . . . . . Recycling Units . | . . . . . Scanalyzers . | . . . . . Garrison Access . | . . . . . Data Cores Recovered 2 | . . . 2 . Used . | . . . . . Hacking Detections 3 | . . . 1 2 Full Trace Events 1 | . . . 1 . Feedback Events . | . . . . . Feedback Blocked . | . . . . . Robot Schematics Acquired . | . . . . . Robots Built . | . . . . . Authchips . | . . . . . Time . | . . . . . Total Robot Build Rating . | . . . . . Part Schematics Acquired . | . . . . . Parts Built . | . . . . . Authchips . | . . . . . Time . | . . . . . Total Part Build Rating . | . . . . . Parts Repaired 1 | . . . 1 . Time 38 | . . . 38 . Parts Recycled . | . . . . . Recycled Matter . | . . . . . Retrieved Matter . | . . . . . Retrieved Components . | . . . . . Parts Scanalyzed . | . . . . . Part Schematics Acquired . | . . . . . Parts Damaged . | . . . . . Bothacking | -11 -10 -9 -8 -7 ------------ Run | Yrd Mat Mat Mat Fac Used RIF Installer . | . . . . . Robots Hacked . | . . . . . Non-combat . | . . . . . Combat . | . . . . . Robot Hacks Applied . | . . . . . Relay Couplers Released 3 | . . . . 3 Machine Destruction 3 | . . . . 3 Fabnet Peak Effective % . | . . . . . Robots Rewired . | . . . . . Allies Hacked . | . . . . . Hacks Repelled . | . . . . . Allies | -11 -10 -9 -8 -7 -------- Run | Yrd Mat Mat Mat Fac Total Allies . | . . . . . Largest Group . | . . . . . Highest-Rated Group . | . . . . . Highest-Rated Ally . | . . . . . Total Orders . | . . . . . Ally Attacks . | . . . . . Total Damage . | . . . . . Kills . | . . . . . Allies Corrupted . | . . . . . Allies Melted . | . . . . . Intel | -11 -10 -9 -8 -7 ------- Run | Yrd Mat Mat Mat Fac Robot Analysis Total . | . . . . . Derelict Logs Recovered . | . . . . . Drone Launches . | . . . . . Drone Recoveries . | . . . . . Exploration | -11 -10 -9 -8 -7 ------------- Run | Yrd Mat Mat Mat Fac Turns Passed 3314 | 55 465 704 558 1532 Spaces Moved 2437 | 43 369 471 370 1184 Core 7 | 6 . . . 1 Treads 53 | . . 53 . . Legs . | . . . . . Wheels 2377 | 37 369 418 370 1183 Hover . | . . . . . Flight . | . . . . . Fastest Speed 50 | 50 100 105 90 80 Average Speed 94 | 93 100 112 90 86 Slowest Speed 350 | 100 100 160 90 350 Overloaded Moves . | . . . . . Propulsion Burnouts . | . . . . . Robots Hopped . | . . . . . Cave-ins Triggered . | . . . . . Exploration Rate (%) 33 | 3 56 40 41 27 Regions Visited 4 Branch Regions . Pre-discovered Areas . | . . . . . Known Exits Taken 3 | . 1 1 1 . Unknown Exits Taken 1 | 1 . . . . Scrap Searched . | . . . . . Spaces Dug . | . . . . . Terrain Destroyed 8 | . . . . 8 Melee . | . . . . . Projectile 1 | . . . . 1 AOE 7 | . . . . 7 Terrain Rammed . | . . . . . Walls Destroyed . | . . . . . Machines Disabled . | . . . . . Actions | -11 -10 -9 -8 -7 --------- Run | Yrd Mat Mat Mat Fac Total 3127 | 57 445 601 524 1500 Wait 317 | . 31 73 80 133 Move 2433 | 42 368 470 369 1184 Hop . | . . . . . Pick Up 91 | 8 16 14 17 36 Fast Attach 1 | . . . . 1 Attach 43 | 6 1 6 5 25 Detach . | . . . . . Swap 50 | 1 9 14 10 16 Drop 37 | . 10 4 10 13 Fire 155 | . 10 20 33 92 Melee . | . . . . . Ram . | . . . . . Kick . | . . . . . Crush . | . . . . . Escape Stasis . | . . . . . Rewire . | . . . . . Trap . | . . . . . Miscellaneous . | . . . . . Route ------- -11/Scrapyard -10/Materials (discovered 3 exits: *Mat x2 / [*Min]) -9/Materials (discovered 3 exits: *Mat / *Min / [*Sto]) -8/Materials -7/Factory History --------- Turn | Location | Event 30 | -11/Scrapyard | Discovered new exit (range 14) 56 | -11/Scrapyard | Entered Materials 127 | -10/Materials | Discovered new exit (range 12) 226 | -10/Materials | Discovered new exit (range 14) 314 | -10/Materials | Build established: Mutant 448 | -10/Materials | Discovered new exit (range 4) 520 | -10/Materials | Identified exit to Materials 521 | -10/Materials | Entered another Materials area 521 | -9/Materials | Evolved 2 slots: Utility x2 582 | -9/Materials | Discovered new exit (range 6) 809 | -9/Materials | Discovered new exit (range 16) 933 | -9/Materials | Lost 4 parts (1n1u2w) 941 | -9/Materials | Destroyed 8 combat bots 1008 | -9/Materials | Discovered new exit (range 11) 1047 | -9/Materials | Identified exit to Mines 1224 | -9/Materials | Identified exit to Materials 1225 | -9/Materials | Entered another Materials area 1225 | -8/Materials | Evolved 2 slots: Propulsion x2 1381 | -8/Materials | Garrison activated, responded to threat 1652 | -8/Materials | Repaired Lgt. Deuterium Engine 1779 | -8/Materials | Discovered new exit (range 4) 1782 | -8/Materials | Identified exit to Factory 1783 | -8/Materials | Entered Factory 1783 | -7/Factory | Evolved 2 slots: Utility x2 2097 | -7/Factory | Noticed a derelict Sapper rigging charges 2098 | -7/Factory | Build established: Scavenger-Skirmisher 2234 | -7/Factory | Lost 6 parts (3p1n1u1w) 2329 | -7/Factory | Lost 5 parts (1p2n1u1w) 2554 | -7/Factory | Build established: Scavenger-Mutant 3122 | -7/Factory | Core integrity fell below 50% 3267 | -7/Factory | Assembled infested ambush trap array 3299 | -7/Factory | Core integrity fell below 20% 3315 | -7/Factory | Destroyed by D-53 Grenadier with Mini Grenade Launcher Last Messages --------------- 03307_ as-92828 emerges from a hatch in the floor. 03307_ Trap cavity collapses in on itself. 03308_ Hvy. Laser destroyed. 03308_ Critical hit (Burn: +80). 03311_ as-11411 destroyed. 03311_ U-05 Engineer destroyed. 03311_ S-27 Virus destroyed. 03311_ as-23849 destroyed. 03311_ as-92828 destroyed. 03311_ Hvy. EM Pulse Gun destroyed. 03312_ Overheating: System interference. 03312_ Core Analyzer temporarily disabled. 03312_ Wheel destroyed. 03312_ R-06 Scavenger collects Lgt. Ion Engine. 03312_ Wheel destroyed. 03313_ as-52731 destroyed. 03313_ as-60292 destroyed. 03313_ B-48 Gladiator destroyed. 03315_ Lrg. Storage Unit destroyed. Map ----- +----------------------------------------------------+ | " " " "" ?????????????????????????????????? | | ????????????????????????????????? | | #???????????????????????????????? | | ############## ###???????????????????????????????? | | ?????????????# #?????????????????????????????????? | | ?????????????# #?????????????????????????????????? | | ?????????????# #?????????????????????????????????? | | ???###########/##????????????????????????????????? | | ???# ! #????????????????????????????????? | | ???# #????????????????????????????????? | | ???# #??###########???????????????????? | | #### #??# #???????????????????? | | # #??#= !#???????????????????? | | # #??# #???????????????????? | | + #??# """ #?####+####?????????? | | # #??# """ """ #? % ??????????? | | # #??# """ Y" # ????????????? | | # # #??# """ # ??????????????? | | # # #??# s #???????????????? | | + # #??##### #???????????????? | | ##%##############??# d #???????????????? | | ##"#???????????????# gd #???????????????? | | ## #???????????????# r /% #???????????????? | | ## #????############ ####??????????????? | | ## #????# ## ![! #??????????????? | | ## #????# # *@""" +??????????????? | | ## #????# # [!"F" #??????????????? | | ## #????# + " """ #??????????????? | | ## #????# """%""" # # """ """ #??????????????? | | ## #????# """ """ # # """ ""? #??????????????? | | ## #????# """ """ ### ### ????????????????? | | ?# #????# #?# #?#! ? / ???????????????? | | ?# #????####+######## #?#####??##????????????????? | | ?# #???????# #??????????????????????????? | | ## ##??????# * #??????????????????????????? | | # ######## #??????????????????????????? | | + + """??????????????????????? | | # ############## # """??????????????????????? | | ## ##?????????????? #?? ??????????????????????? | | ?# #??????????????? #??????????????????????????? | | ?# #??????????????? #??????????????????????????? | | ?# #??????????????? #??????????????????????????? | | ?# #???????????????? ???????????????????????????? | | ?# #???????????????? ???????????????????????????? | | ? ???????????????? ???????????????????????????? | | ? ?????????????????????????????????????????????? | | ? "?????????????????????????????????????????????? | | ? "?????????????????????????????????????????????? | | ? "?????????????????????????????????????????????? | | ? ??????????????????????????????????????????????? | +----------------------------------------------------+ Best States ------------- Heat Dissipation 48 Energy Generation 18 Energy Capacity 310 Matter Stores 300 Matter Capacity 300 Sight Range 18 Robot Scan Range 14 Terrain Scan Density 10 ECM Strength 2 Armor Coverage 225 Evasion (%) 44 Core Analysis 6 Recoil Reduction 2 Offensive Hacking 20 Item Schematics ----------------- None Robot Schematics ------------------ None Fabricated ------------ Nothing Alien Tech Used ----------------- None Achievements -------------- None Challenges ------------ None Game ------ Seed AntimatterTerrainSystem Manual? 0 Play Time 00:33:41 Cumulative 14.1 hours Start 2024.06.15 @ 00:42:43 End 2024.06.15 @ 01:17:48 Sessions 2 Manual Loads 0 Difficulty Rogue Special Mode None Game No. 40 Rogue 40 Adventurer 0 Explorer 0 Win Type - Total 0 Types 0/0/0/0/0/0/0/0/0 Lore% 8 Gallery% 24 Achievement% 17 Wizard Run 0 Options --------- Layout 1 ASCII 0 Keyboard 0 Movement Mouse Keybinds 0 Fullscreen 2 Font 24/Smallcaps Map View 50x35 Zoom Use 0% Tactical HUD 1 Map Filters NONE Filters NONE Steam 1 RUN: 62e3a7a3-f385-4e27-b6cb-e6be4c391c2e